bitfinex/quotes_ETHUSD_20251010
["timestamp","ask_amount","ask_price","bid_price","bid_amount"]
[1760135554731,0.001,3888.1,3886.0,1.718069]
[1760135556182,0.001,3888.1,3886.0,2.948069]
[1760135556780,1.20035813,3888.0,3886.0,2.948069]
[1760135556955,1.5481508,3888.0,3886.0,2.948069]
[1760135557572,0.001,3888.1,3886.0,4.178069]
[1760135557739,1.29502287,3887.8,3886.0,4.178069]
[1760135558064,0.001,3888.1,3886.0,4.178069]
[1760135558065,1.25833954,3887.6,3886.0,4.178069]
[1760135558269,0.34779267,3887.5,3886.0,4.178069]
[1760135558467,1.5581556,3887.5,3886.0,4.178069]
[1760135558636,1.28156714,3887.4,3886.0,4.178069]
[1760135558836,1.23359433,3887.2,3886.0,4.178069]
[1760135559037,1.59103474,3887.1,3886.0,5.408069]
[1760135559236,0.32531767,3887.1,3886.0,5.408069]
[1760135559981,0.001,3888.1,3886.0,5.408069]
[1760135559982,1.20035813,3888.0,3886.0,5.408069]
[1760135560141,1.5211958,3888.0,3886.0,5.408069]
[1760135560475,1.5211958,3888.0,3886.0,6.638069]
[1760135560636,0.32083767,3888.0,3886.0,6.638069]
[1760135560849,1.20035813,3888.0,3886.0,6.638069]
[1760135561295,1.53530725,3888.0,3886.0,6.638069]
[1760135561463,1.29502287,3887.8,3886.0,6.638069]
[1760135561664,1.25833954,3887.6,3886.0,6.64400667]
[1760135561863,0.33494912,3887.5,3886.0,6.64400667]
[1760135562068,1.54531205,3887.5,3886.0,6.64400667]
[1760135562260,1.54531205,3887.5,3886.0,8.3e-07]
[1760135562261,0.67570928,3887.5,3886.0,8.3e-07]
[1760135562461,0.33494912,3887.5,3886.0,8.3e-07]
[1760135562759,1.54531205,3887.5,3886.0,8.3e-07]
[1760135562979,1.25833954,3887.6,3886.0,1.23000083]
[1760135563372,1.28156714,3887.4,3886.0,1.23000083]
[1760135563683,0.001,3888.1,3883.9,3.39257558]
[1760135563684,0.37003646,3886.0,3883.9,3.39257558]
[1760135563888,0.4397,3887.7,3883.9,2.73806298]
[1760135563889,0.35973391,3885.2,3883.9,2.73806298]
[1760135564198,1.25366672,3885.0,3883.9,1.642e-05]
[1760135564363,1.24047348,3884.8,3883.9,1.23001642]
[1760135564565,0.3375927,3884.7,3883.9,1.19996804]
[1760135564966,1.60631766,3884.7,3883.9,0.62234347]
[1760135565189,1.60631766,3884.7,3883.9,0.56587052]
[1760135565361,1.23408908,3884.6,3883.9,0.44065423]
[1760135565691,0.28804018,3886.3,3883.9,0.44065423]
[1760135565692,1.21679533,3886.0,3883.9,0.00011018]
[1760135565851,1.26872496,3884.7,3883.9,4.549e-05]
[1760135566056,1.25763459,3884.5,3883.9,4.549e-05]
[1760135566251,1.23508858,3884.3,3883.9,4.549e-05]
[1760135566482,1.60887723,3884.3,3883.9,4.549e-05]
[1760135566683,0.34908735,3884.7,3883.9,4.549e-05]
[1760135566888,0.34908735,3884.6,3883.9,4.549e-05]
[1760135567086,0.06982693,3885.0,3883.9,1.23004549]
[1760135567252,1.24047348,3884.8,3883.9,0.09150189]
[1760135567457,1.23408908,3884.6,3883.9,7.48e-06]
[1760135567656,0.36409318,3884.7,3883.9,7.48e-06]
[1760135567657,1.2236884,3884.4,3883.9,7.48e-06]
[1760135567888,1.2307074,3885.8,3883.9,7.48e-06]
[1760135568065,0.34090071,3884.3,3883.9,7.48e-06]
[1760135568282,0.31905071,3885.1,3883.9,7.48e-06]
[1760135568482,1.20159822,3886.3,3883.9,7.48e-06]
[1760135568483,1.20275064,3886.2,3883.9,7.48e-06]
[1760135568792,1.20035813,3888.0,3883.9,1.23000748]
[1760135568977,1.26886017,3887.7,3883.9,1.23000748]
[1760135569300,1.20035813,3888.0,3883.9,1.23000748]
[1760135570097,1.20035813,3888.0,3883.9,2.46000748]
[1760135571097,1.22933209,3888.2,3883.9,2.46000748]
[1760135571272,1.20035813,3888.0,3883.9,2.46000748]
[1760135571472,1.20035813,3888.0,3883.9,3.69000748]
[1760135572014,1.23879105,3888.1,3883.9,3.69000748]
[1760135572502,1.20035813,3888.0,3883.9,3.69000748]
[1760135572907,0.001,3888.1,3883.9,4.92000748]
[1760135573495,1.20035813,3888.0,3883.9,4.92000748]
[1760135574404,0.001,3888.1,3883.9,6.15000748]
[1760135574575,0.55035813,3888.0,3883.9,6.15000748]
[1760135574775,1.20035813,3888.0,3883.9,6.15000748]
[1760135574974,0.001,3888.1,3883.9,6.15000748]
[1760135575716,0.001,3888.5,3883.9,7.38000748]
[1760135577052,0.001,3888.5,3883.9,8.61000748]
[1760135577699,1.23424535,3888.4,3883.9,8.61000748]
[1760135577922,0.001,3888.5,3883.9,8.61000748]
[1760135578446,0.001,3888.5,3884.0,1.92]
[1760135579106,1.26231232,3888.5,3883.9,9.84200748]
[1760135579432,0.001,3888.5,3884.0,1.92]
[1760135580533,0.001,3888.5,3883.9,11.07200748]
[1760135580734,1.62473568,3888.4,3883.9,11.07200748]
[1760135581040,0.001,3888.5,3883.9,12.30200748]
[1760135581698,1.26231232,3888.5,3883.9,12.30200748]
[1760135581931,0.001,3888.5,3884.0,1.92]
[1760135582306,0.29668786,3888.4,3884.0,3.15]
[1760135583010,0.001,3888.5,3884.0,3.15]
[1760135583592,0.001,3888.5,3885.1,1.92]
[1760135584259,0.001,3888.5,3884.0,4.38]
[1760135584462,0.001,3888.5,3885.4,36.573]
[1760135584674,0.001,3888.5,3885.5,1.92]
[1760135585073,0.001,3888.5,3885.5,3.15]
[1760135585485,0.001,3888.5,3885.5,1.23]
[1760135586354,0.001,3888.5,3885.5,2.46]
[1760135586556,0.001,3888.5,3886.9,1.92]
[1760135587410,0.001,3888.5,3888.3,1.92]
[1760135587768,0.001,3888.5,3888.3,3.15]
[1760135588385,0.001,3888.5,3888.3,54.434]
[1760135588802,0.001,3888.9,3888.3,54.434]
[1760135589188,0.001,3888.9,3888.3,53.744]
[1760135589414,0.001,3888.9,3888.4,1.92]
[1760135590132,0.001,3888.9,3888.3,53.744]
[1760135590434,0.001,3888.9,3888.3,2.46]
[1760135590594,0.001,3888.9,3888.3,3.69]
[1760135591718,0.001,3888.9,3888.4,1.92]
[1760135591887,0.001,3888.9,3888.4,3.15]
[1760135592289,0.001,3888.9,3888.4,1.23]
[1760135592485,0.001,3888.9,3888.4,3.15]
[1760135592920,0.001,3888.9,3888.4,1.23]
[1760135593322,0.001,3888.9,3888.4,2.46]
[1760135593524,0.001,3888.9,3888.8,82.328]
[1760135594023,0.001,3888.9,3888.8,84.248]
[1760135594225,0.001,3888.9,3888.8,82.328]
[1760135594536,0.001,3888.9,3888.5,56.0719]
[1760135595546,0.001,3888.9,3888.4,3.69]
[1760135595702,0.001,3888.9,3888.5,0.02018322]
[1760135595907,0.001,3888.9,3888.5,1.94018322]
[1760135596107,0.001,3888.9,3888.5,3.17018322]
[1760135596348,0.001,3888.9,3888.5,1.25018322]
[1760135597442,0.001,3888.9,3888.5,2.48018322]
[1760135597653,0.3319734,3888.9,3888.5,2.48018322]
[1760135597831,0.001,3888.9,3888.5,2.48018322]
[1760135598706,0.001,3888.9,3888.5,3.71018322]
[1760135600108,0.001,3888.9,3888.5,4.94018322]
[1760135600307,0.00402043,3888.8,3888.5,4.94018322]
[1760135600523,0.29237902,3888.8,3888.4,1.85972153]
[1760135600722,0.38173906,3888.7,3885.5,1.64879188]
[1760135601125,0.38173906,3888.7,3884.0,1.17755503]
[1760135601126,1.22600452,3885.2,3884.0,1.17755503]
[1760135601440,0.35641198,3885.1,3883.9,12.24692785]
[1760135601746,0.001,3888.9,3883.9,12.24692785]
[1760135601747,1.22600452,3885.2,3883.9,12.24692785]
[1760135601924,1.27421488,3885.0,3883.1,0.00155514]
[1760135602135,1.24264779,3884.8,3883.1,0.00155514]
[1760135602338,0.32454135,3884.7,3883.1,0.00155514]
[1760135602538,0.27876579,3887.1,3883.1,0.00155514]
[1760135602859,1.23485255,3887.0,3883.1,1.23155514]
[1760135603051,1.29577335,3886.8,3883.1,1.23155514]
[1760135603250,1.23015384,3886.6,3883.1,1.23155514]
[1760135603451,1.27927116,3886.4,3883.1,1.23155514]
[1760135603651,1.21577917,3886.2,3883.1,1.23155514]
[1760135603956,0.33247797,3887.7,3883.1,2.46155514]
[1760135604163,0.001,3888.9,3883.1,2.46155514]
[1760135604532,0.001,3888.9,3883.2,0.28222557]
[1760135604859,0.001,3888.9,3883.1,2.46155514]
[1760135605232,1.23233521,3888.8,3883.1,2.46155514]
[1760135605428,1.55210324,3888.8,3883.1,3.69155514]
[1760135605626,0.31976803,3888.8,3883.1,3.69155514]
[1760135605877,1.26998951,3888.7,3883.1,3.69155514]
[1760135606061,1.26131232,3888.5,3883.1,3.69155514]
[1760135606360,0.31976803,3888.4,3883.1,3.69155514]
[1760135606555,1.20486596,3888.3,3883.1,3.69155514]
[1760135606864,1.24460394,3888.1,3883.1,2.44376623]
[1760135607162,1.22639517,3882.4,3879.9,54.58873991]
[1760135607363,0.13476193,3878.2,3876.4,1.21594439]
[1760135607661,2.25708297,3878.1,3876.4,1.21594439]
[1760135607860,1.25456599,3877.9,3876.4,1.21594439]
[1760135608159,0.13476193,3878.2,3876.4,2.44594439]
[1760135608160,1.85671701,3877.8,3876.4,2.44594439]
[1760135608536,1.24239402,3877.6,3876.4,2.44594439]
[1760135608737,0.42671701,3877.5,3876.4,2.44594439]
[1760135609073,0.13476193,3878.2,3876.4,2.44594439]
[1760135609074,1.43,3877.4,3876.4,2.44594439]
[1760135609238,1.31712392,3877.4,3876.4,2.44594439]
[1760135609563,0.13476193,3878.2,3876.4,3.67594439]
[1760135609787,0.13476193,3878.2,3876.5,1.92]
[1760135610363,0.13476193,3878.2,3877.3,54.7899]
[1760135610658,0.13476193,3878.2,3877.4,1.92]
[1760135610860,0.13476193,3878.2,3877.3,56.0199]
[1760135611569,0.13476193,3878.2,3877.3,1.23]
[1760135612156,1.26131232,3888.5,3877.3,2.46]
[1760135612390,1.29558166,3884.2,3878.1,30.45]
[1760135612589,0.30690544,3884.1,3878.1,30.45]
[1760135612795,1.24395835,3884.0,3878.1,30.45]
[1760135613069,0.30690544,3883.9,3878.1,30.45]
[1760135613286,1.25065163,3883.8,3878.1,30.45]
[1760135613587,1.23233521,3888.8,3878.2,2.11253065]
[1760135613798,1.21899769,3888.6,3878.2,1.92]
[1760135613973,0.13464894,3885.1,3878.2,1.92]
[1760135614489,1.20710138,3885.5,3880.1,23.277]
[1760135614789,1.23801978,3884.9,3880.1,23.277]
[1760135614996,0.24413569,3886.3,3880.1,24.507]
[1760135615192,0.13468663,3885.4,3880.1,1.23]
[1760135615358,0.30614403,3885.3,3880.1,1.23]
[1760135615559,1.29,3885.2,3880.1,1.23]
[1760135615900,0.30614403,3885.1,3880.1,1.23]
[1760135616195,1.27421488,3885.0,3880.1,1.23]
[1760135616398,0.30614403,3885.1,3880.1,1.23]
[1760135616399,0.30614403,3884.9,3880.1,2.46]
[1760135616574,1.24264779,3884.8,3880.1,2.46]
[1760135616758,1.26086591,3884.6,3880.1,2.46]
[1760135616963,1.24805278,3884.4,3880.1,2.46]
[1760135617173,1.29558166,3884.2,3880.1,2.46]
[1760135617382,1.24395835,3884.0,3880.1,2.46]
[1760135617604,1.25065163,3883.8,3880.1,2.46]
[1760135617881,1.2069959,3883.6,3877.3,2.45957506]
[1760135618102,1.2112614,3883.4,3877.3,2.45957506]
[1760135618409,1.25772767,3883.2,3877.4,0.002]
[1760135618616,0.001,3884.8,3877.3,2.45957506]
[1760135618617,1.27291471,3883.0,3877.3,1.16512613]
[1760135618789,1.25868468,3882.8,3877.3,1.16512613]
[1760135618984,1.20344662,3882.6,3877.3,1.16512613]
[1760135619192,1.22639517,3882.4,3877.3,2.39512613]
[1760135619434,1.26089042,3882.2,3877.3,1.71198475]
[1760135619721,1.25737903,3882.0,3877.3,1.71198475]
[1760135619881,0.80854127,3881.9,3877.3,1.71198475]
[1760135620082,1.27611408,3881.8,3877.3,1.71198475]
[1760135620281,1.21538244,3881.6,3877.3,1.71198475]
[1760135620491,1.2800211,3881.4,3877.3,2.94198475]
[1760135620693,1.20546996,3881.2,3877.3,2.94198475]
[1760135620894,1.59329204,3881.1,3877.3,2.94198475]
[1760135621389,2.52600791,3881.0,3877.3,2.94198475]
[1760135621802,1.23444505,3880.8,3877.3,4.17198475]
[1760135622176,0.34778236,3882.4,3877.3,4.17198475]
[1760135622399,0.2323362,3883.9,3877.3,2.94358203]
[1760135622600,1.29,3882.3,3877.3,2.94358203]
[1760135622913,1.26089042,3882.2,3877.3,2.94358203]
[1760135623109,1.25065163,3883.8,3877.3,4.17358203]
[1760135623297,0.26155751,3883.2,3877.3,4.17358203]
[1760135623476,0.32553236,3883.1,3877.3,4.17358203]
[1760135623679,1.26256501,3882.9,3877.3,4.17358203]
[1760135623911,1.278591,3882.7,3877.3,4.17358203]
[1760135624114,1.24390809,3882.5,3877.3,4.17358203]
[1760135624412,1.22136108,3882.3,3877.3,4.17358203]
[1760135624619,1.23709674,3882.1,3877.3,5.40358203]
[1760135624820,1.24040248,3881.9,3876.4,1.36029548]
[1760135624987,0.79683236,3882.0,3876.4,1.36029548]
[1760135624988,1.26517148,3881.7,3876.4,1.36029548]
[1760135625188,1.24746315,3881.5,3876.4,1.36029548]
[1760135625396,0.4713,3883.2,3876.4,1.36029548]
[1760135625397,1.28122016,3881.3,3876.4,1.36029548]
[1760135625599,1.29268117,3881.1,3876.4,1.36029548]
[1760135625820,1.24393533,3880.9,3876.4,1.36029548]
[1760135626125,1.27672886,3880.7,3876.4,2.59029548]
[1760135626329,1.25410955,3880.5,3876.4,2.59029548]
[1760135626493,0.4713,3881.1,3876.4,2.59029548]
[1760135626494,1.26288203,3880.3,3876.4,2.59029548]
[1760135626689,1.26385139,3880.1,3876.4,2.25609117]
[1760135626893,1.21244484,3879.9,3876.4,1.95579165]
[1760135627128,1.26766513,3879.7,3876.4,1.6859573]
[1760135627428,1.23429141,3879.5,3876.4,2.64808502]
[1760135627634,0.25424528,3879.4,3876.4,2.20428845]
[1760135627817,1.27638959,3879.3,3876.4,2.20428845]
[1760135628013,1.20683806,3879.1,3876.4,1.96296466]
[1760135628189,1.2896145,3878.9,3876.4,1.96296466]
[1760135628395,0.2566371,3878.8,3876.4,1.96296466]
[1760135628614,0.53556616,3878.8,3876.4,3.19296466]
[1760135628814,1.29211215,3878.6,3876.4,2.92148285]
[1760135629116,0.27892906,3878.5,3876.4,2.70158877]
[1760135629317,0.91444505,3880.8,3876.4,2.70158877]
[1760135629511,0.1954692,3880.0,3876.4,2.70158877]
[1760135629708,0.23422308,3880.7,3876.4,2.70158877]
[1760135629908,1.09004299,3879.8,3876.4,3.93158877]
[1760135630090,1.2511964,3879.6,3876.4,3.93158877]
[1760135630287,1.24269089,3879.4,3876.4,3.93158877]
[1760135630492,1.50673612,3879.4,3876.4,3.93158877]
[1760135630692,1.5029116,3879.4,3876.4,3.93158877]
[1760135630921,1.24035326,3879.2,3876.4,3.93158877]
[1760135631120,1.28676209,3879.0,3876.4,3.93158877]
[1760135631324,1.21302511,3878.8,3876.4,4.88108837]
[1760135631627,1.44660582,3878.8,3876.4,4.66208837]
[1760135631928,1.25542501,3878.6,3876.4,4.66208837]
[1760135632231,0.4548,3879.5,3876.4,4.66208837]
[1760135632232,1.25911854,3878.4,3876.4,4.66208837]
[1760135632412,1.28353585,3878.2,3876.4,3.37208837]
[1760135632724,0.228,3879.8,3876.4,1.23]
[1760135632725,1.28235546,3878.0,3876.4,1.23]
[1760135632901,1.28353585,3878.2,3876.4,1.23]
[1760135633223,1.28235546,3878.0,3876.4,1.23]
[1760135633527,1.29634647,3877.8,3876.4,1.06884642]
[1760135633714,1.24781413,3877.6,3876.4,0.76518038]
[1760135633892,1.25066882,3877.4,3876.4,1.99318038]
[1760135634093,0.05026459,3877.3,3876.4,1.99318038]
[1760135634424,1.70847848,3877.2,3876.4,1.69514694]
[1760135634599,1.2068419,3877.0,3876.4,1.15816226]
[1760135634801,1.2888823,3876.8,3876.4,1.15816226]
[1760135635130,0.4548,3878.0,3876.4,1.15816226]
[1760135635330,0.11752903,3876.7,3876.4,2.38816226]
[1760135635526,0.11752903,3876.7,3876.4,2.16916226]
[1760135635729,0.2434845,3875.6,3874.4,0.002]
[1760135636026,0.23532961,3875.9,3874.0,1.01e-06]
[1760135636325,1.24870309,3875.5,3874.0,1.01e-06]
[1760135636499,1.27769843,3875.3,3874.0,1.23000101]
[1760135636701,1.22698514,3875.1,3874.0,1.23000101]
[1760135637038,1.22757592,3874.9,3874.0,1.23000101]
[1760135637198,1.21096563,3874.4,3874.0,0.89544773]
[1760135637399,1.23729232,3874.2,3874.0,0.29686355]
[1760135637627,1.6673569,3874.1,3874.0,0.29686355]
[1760135637812,0.25356523,3874.7,3874.0,0.29686355]
[1760135637998,0.27469248,3874.1,3874.0,1.23340128]
[1760135638209,1.1906781,3875.0,3873.1,1.5889293]
[1760135638396,0.4548,3875.3,3873.1,1.5889293]
[1760135638597,0.96225083,3874.8,3873.1,1.5889293]
[1760135638905,3.84478228,3874.5,3873.1,1.29397744]
[1760135639104,2.58123851,3874.2,3873.1,1.29397744]
[1760135639330,0.98961707,3874.3,3873.1,1.29397744]
[1760135639499,0.33717035,3874.1,3873.1,2.52397744]
[1760135639710,1.20231897,3873.9,3873.1,2.25158184]
[1760135639918,0.32258675,3873.8,3873.1,2.22056475]
[1760135640156,0.32258675,3873.8,3873.1,1.86879641]
[1760135640157,0.4548,3873.7,3873.1,1.86879641]
[1760135640323,1.49561976,3873.6,3873.1,1.55271472]
[1760135640643,1.49561976,3873.6,3872.1,0.005]
[1760135640644,1.51795911,3873.1,3872.1,0.005]
[1760135640942,1.26380409,3874.5,3873.1,0.79950185]
[1760135641146,1.24994101,3875.7,3873.1,0.59310759]
[1760135641328,1.0321858,3874.6,3873.1,0.59310759]
[1760135641643,0.13515857,3875.6,3873.2,0.2842]
[1760135641852,0.13515857,3875.6,3873.1,0.59310759]
[1760135642047,0.005,3876.9,3873.1,0.59310759]
[1760135642048,0.5051005,3875.5,3873.1,0.59310759]
[1760135642222,0.5051005,3875.5,3873.1,1.82310759]
[1760135642223,0.24686248,3875.5,3873.1,1.82310759]
[1760135642537,0.24686248,3876.7,3873.2,0.2842]
[1760135642722,0.02375757,3875.6,3873.2,0.2842]
[1760135642926,0.02375757,3876.0,3873.2,0.2842]
[1760135643251,0.4788823,3876.8,3873.2,0.2842]
[1760135643419,1.09016627,3876.6,3873.1,1.82310759]
[1760135643615,0.13510463,3876.3,3873.2,0.4503]
[1760135643840,0.13510463,3876.3,3873.3,0.2188]
[1760135644146,0.13510463,3876.3,3873.4,0.4503]
[1760135644513,0.13510463,3876.3,3873.1,3.05310759]
[1760135644715,1.28905787,3876.0,3873.1,3.05310759]
[1760135644927,1.22298258,3875.8,3873.1,4.28310759]
[1760135645128,0.39045141,3875.7,3873.1,4.28310759]
[1760135645340,1.22178844,3875.6,3873.1,4.28310759]
[1760135645546,2.58037879,3875.4,3873.1,4.20259911]
[1760135645747,0.51135141,3875.3,3873.1,4.18247199]
[1760135645963,1.27192665,3875.2,3873.1,3.74808581]
[1760135646119,1.29362982,3875.0,3873.1,4.59276779]
[1760135646320,1.20795455,3874.8,3873.1,4.59276779]
[1760135646556,0.1209,3875.3,3873.1,3.99310593]
[1760135646557,1.26760534,3874.6,3873.1,3.99310593]
[1760135646725,0.1209,3875.3,3872.6,0.70662021]
[1760135646726,0.29249934,3874.5,3872.6,0.70662021]
[1760135646931,0.13510463,3876.3,3873.2,0.4503]
[1760135647120,0.29249934,3875.4,3873.2,0.4503]
[1760135647328,0.1219,3875.9,3872.6,0.70662021]
[1760135647569,2.5802003,3875.7,3872.6,0.70662021]
[1760135647771,0.43860289,3875.6,3872.6,1.93662021]
[1760135647975,0.1219,3875.5,3872.6,1.93662021]
[1760135648132,0.31670289,3875.4,3872.6,1.93662021]
[1760135648334,0.1219,3875.3,3872.6,1.87355753]
[1760135648651,0.31670289,3875.2,3872.6,1.87355753]
[1760135648862,0.1219,3875.3,3872.6,1.87355753]
[1760135649157,1.237736,3875.1,3872.6,3.10355753]
[1760135649349,0.31670289,3875.0,3872.6,3.10355753]
[1760135649554,0.13510463,3876.3,3872.6,3.10355753]
[1760135649555,0.13510463,3876.3,3872.7,0.468]
[1760135649731,0.26460463,3876.3,3872.7,0.468]
[1760135649931,1.5601947,3876.2,3872.7,0.468]
[1760135650244,1.42860891,3876.1,3872.7,1.23]
[1760135650567,1.2822835,3875.5,3872.7,0.96137369]
[1760135650769,1.237736,3875.1,3872.7,0.42457921]
[1760135650934,1.23873486,3874.9,3872.6,1.77543142]
[1760135651260,1.24834346,3874.7,3872.6,0.23101314]
[1760135651453,1.21920782,3874.3,3871.9,0.08401235]
[1760135651654,0.31166375,3871.2,3870.9,0.76662505]
[1760135651856,1.25204494,3872.6,3870.9,0.76662505]
[1760135652053,1.58201202,3872.3,3870.9,0.1992657]
[1760135652242,0.1408,3873.7,3870.9,0.6672657]
[1760135652644,0.1416,3874.8,3871.0,0.468]
[1760135653170,2.57828693,3878.6,3871.0,0.468]
[1760135653171,0.3598,3874.7,3872.6,0.002]
[1760135653340,0.68356578,3874.7,3872.6,0.002]
[1760135653542,1.26760534,3874.6,3872.6,0.002]
[1760135653742,0.68356578,3874.7,3872.2,0.002]
[1760135653743,0.32376578,3874.5,3872.2,0.002]
[1760135653969,0.32376578,3874.5,3872.3,0.218]
[1760135654272,0.005,3874.9,3872.3,0.218]
[1760135654467,0.005,3874.9,3872.3,1.448]
[1760135654674,0.02928396,3874.8,3872.3,1.23]
[1760135654885,0.005,3874.9,3872.3,1.23]
[1760135655086,0.005,3875.9,3872.3,1.23]
[1760135655543,1.22298258,3875.8,3872.3,1.23]
[1760135655744,0.005,3875.9,3872.3,2.46]
[1760135655961,0.005,3875.9,3872.4,0.468]
[1760135656270,0.005,3876.9,3872.4,0.468]
[1760135656491,1.27161605,3876.8,3872.4,0.468]
[1760135656841,0.005,3876.9,3872.4,0.468]
[1760135657255,1.27161605,3876.8,3872.4,1.698]
[1760135657564,0.005,3876.9,3872.5,0.468]
[1760135657565,1.25245605,3876.9,3872.5,0.468]
[1760135657879,0.05781256,3876.8,3872.5,0.468]
[1760135658081,0.31799655,3876.8,3872.5,0.468]
[1760135658241,0.05949869,3876.7,3872.5,0.468]
[1760135658442,0.31968268,3876.7,3872.5,0.468]
[1760135658667,1.97506262,3876.6,3872.5,1.698]
[1760135658840,1.29983876,3876.4,3872.5,1.698]
[1760135659041,1.24830848,3876.2,3872.5,0.85913665]
[1760135659278,1.25512617,3874.0,3872.5,0.52589712]
[1760135659641,1.34154557,3872.5,3872.4,1.23]
[1760135659875,1.55414327,3872.5,3872.4,0.9355551]
[1760135660182,1.27328296,3873.6,3872.4,2.6335551]
[1760135660382,0.23334838,3872.5,3872.4,2.6335551]
[1760135660540,1.53230305,3872.5,3872.4,2.1655551]
[1760135660746,1.28230284,3872.3,3871.0,1.14001355]
[1760135661081,0.01634863,3872.2,3871.0,1.14001355]
[1760135661278,1.28570176,3872.1,3871.0,2.37001355]
[1760135661580,0.21701783,3872.0,3871.0,2.37001355]
[1760135661786,1.27161605,3876.8,3871.0,2.37001355]
[1760135661943,1.23873486,3874.9,3871.0,2.37001355]
[1760135662143,1.27161605,3876.8,3871.0,2.37001355]
[1760135662544,1.27161605,3876.8,3871.0,3.60001355]
[1760135662746,1.27161605,3876.8,3871.1,0.0203]
[1760135663142,0.03367918,3878.4,3871.1,0.0203]
[1760135663143,1.22298258,3875.8,3871.1,0.0203]
[1760135663373,1.20795455,3874.8,3871.1,0.0203]
[1760135663956,0.005,3874.9,3871.1,0.0203]
[1760135663957,0.005,3874.9,3871.1,1.2503]
[1760135664278,1.29590384,3874.8,3871.2,0.01085362]
[1760135664575,1.29590384,3874.8,3871.1,3.15]
[1760135664989,1.2028547,3874.8,3871.1,3.15]
[1760135665474,0.005,3874.9,3871.8,1.92]
[1760135666382,0.005,3874.9,3871.8,15.13]
[1760135666877,0.005,3874.9,3871.8,16.36]
[1760135667353,0.005,3874.9,3871.8,1.23]
[1760135668151,0.005,3874.9,3871.8,2.46]
[1760135668472,0.28179516,3874.8,3871.8,2.46]
[1760135669474,0.28179516,3874.8,3871.8,3.69]
[1760135669675,0.27854958,3874.8,3871.8,3.69]
[1760135670386,0.26988291,3874.8,3871.8,3.69]
[1760135670586,0.005,3874.9,3871.8,3.69]
[1760135670789,0.005,3874.9,3871.8,4.92]
[1760135671763,0.005,3874.9,3871.9,1.92]
[1760135672265,0.005,3874.9,3871.9,3.15]
[1760135672467,0.005,3874.9,3871.9,1.23]
[1760135672662,0.005,3874.9,3871.9,3.15]
[1760135673577,0.005,3874.9,3871.9,4.38]
[1760135674494,0.005,3874.9,3872.9,1.92]
[1760135674995,0.005,3874.9,3872.9,3.15]
[1760135675398,0.005,3874.9,3873.5,37.7869]
[1760135675893,0.005,3874.9,3873.6,1.92]
[1760135676267,0.005,3874.9,3873.6,3.15]
[1760135676466,0.005,3874.9,3874.6,1.92]
[1760135676662,0.005,3874.9,3874.5,28.3079]
[1760135677294,0.005,3874.9,3874.6,1.92]
[1760135677692,0.005,3874.9,3874.6,3.15]
[1760135678101,0.005,3874.9,3874.6,1.23]
[1760135678995,0.005,3874.9,3874.6,2.46]
[1760135679295,1.2028547,3874.8,3874.6,2.46]
[1760135679500,0.42730466,3874.7,3874.6,2.46]
[1760135680109,0.005,3874.9,3874.6,2.46]
[1760135680308,1.63233084,3874.9,3874.6,2.46]
[1760135680627,0.37842133,3874.8,3874.6,3.69]
[1760135680986,0.005,3874.9,3874.6,3.69]
[1760135681186,0.35173735,3874.8,3874.6,3.69]
[1760135681624,0.34597152,3874.8,3874.6,3.69]
[1760135681791,1.2028547,3874.8,3874.6,4.92]
[1760135682318,0.005,3874.9,3874.6,4.92]
[1760135683290,0.005,3874.9,3874.6,6.15]
[1760135684210,1.2028547,3874.8,3874.6,6.15]
[1760135684523,0.005,3874.9,3874.6,6.15]
[1760135684727,1.2028547,3874.8,3874.6,7.38]
[1760135685232,1.23545131,3874.7,3874.6,7.38]
[1760135685436,1.5813164,3874.7,3874.6,7.38]
[1760135686117,1.2028547,3874.8,3874.6,8.61]
[1760135686318,1.22420332,3877.1,3874.6,8.61]
[1760135686631,0.317043,3876.2,3874.6,8.61]
[1760135686836,1.28030465,3876.1,3874.6,8.61]
[1760135687009,1.24077631,3875.9,3874.6,8.61]
[1760135687215,1.23140945,3875.7,3874.6,8.61]
[1760135687534,1.24551429,3875.5,3874.6,2.16522537]
[1760135687734,1.59166334,3875.4,3873.6,0.82042721]
[1760135688039,0.39404089,3873.6,3871.1,2.46]
[1760135688338,0.35731063,3874.9,3871.1,2.46]
[1760135688496,1.27377201,3874.8,3871.1,2.46]
[1760135688819,1.21748803,3874.6,3872.1,0.005]
[1760135689018,0.35731063,3874.7,3872.1,0.005]
[1760135689019,0.35731063,3874.7,3873.1,0.005]
[1760135689219,0.35731063,3874.5,3873.1,0.005]
[1760135689528,0.24019638,3874.5,3873.1,0.005]
[1760135689937,0.001,3874.9,3873.1,0.005]
[1760135690432,0.001,3874.9,3873.1,1.235]
[1760135691813,0.001,3874.9,3873.1,2.465]
[1760135693244,0.001,3874.9,3873.1,3.695]
[1760135693536,0.001,3874.9,3873.2,1.92]
[1760135694448,0.001,3874.9,3874.4,1.92]
[1760135695636,0.001,3874.9,3874.3,33.971]
[1760135695637,0.001,3874.9,3874.8,67.69171969]
[1760135695812,0.001,3877.2,3874.8,66.83246256]
[1760135696016,0.001,3877.2,3874.9,1.92]
[1760135696214,0.001,3877.2,3875.0,1.2550609]
[1760135696427,0.001,3877.2,3875.1,1.22742365]
[1760135696600,0.001,3877.2,3875.2,1.20590913]
[1760135696806,0.001,3877.2,3875.4,1.92]
[1760135697006,0.001,3889.3,3875.4,1.92]
[1760135697007,0.001,3889.3,3875.5,0.32443805]
[1760135697213,0.001,3889.3,3875.6,3.15879516]
[1760135697413,0.001,3889.3,3884.7,66.4609]
[1760135698047,0.001,3889.3,3884.7,68.3809]
[1760135698843,0.001,3889.3,3884.7,69.6109]
[1760135699839,0.001,3889.3,3884.7,3.15]
[1760135700241,0.001,3889.3,3884.7,2.46]
[1760135700756,0.001,3889.3,3884.7,70.315]
[1760135701122,1.21611965,3886.7,3884.7,2.46]
[1760135701351,0.13450188,3887.0,3884.7,2.46]
[1760135701553,1.26830667,3884.8,3884.7,3.49059957]
[1760135702123,1.9809524,3884.8,3884.7,3.49059957]